bitfinex/quotes_SOLUSD_20240915
["timestamp","ask_amount","ask_price","bid_price","bid_amount"]
[1726392131313,0.169816,137.1,137.09,55.62792417]
[1726392131493,0.169816,137.1,137.09,61.24936676]
[1726392133308,0.169816,137.1,137.09,61.24967455]
[1726392133714,0.169816,137.1,137.09,55.62792417]
[1726392134406,0.169816,137.1,137.09,61.24989262]
[1726392136097,0.169816,137.1,137.09,37.47300862]
[1726392141332,0.169816,137.1,137.09,41.15293032]
[1726392144347,0.169816,137.1,137.09,41.15230803]
[1726392148339,0.169816,137.1,137.09,64.92919203]
[1726392149229,0.2522958,137.14,137.1,44.027864]
[1726392149530,0.2522958,137.14,137.13,11.47457017]
[1726392149710,0.2522958,137.14,137.13,17.09591633]
[1726392154324,0.2522958,137.14,137.13,11.47457017]
[1726392154628,0.2522958,137.14,137.13,17.0955564]
[1726392154836,0.2522958,137.14,137.13,5.62098623]
[1726392155749,0.2522958,137.14,137.13,5.62169785]
[1726392157508,0.2522958,137.14,137.13,5.62162959]
[1726392164612,0.2522958,137.14,137.13,5.62174785]
[1726392167632,0.2522958,137.14,137.12,11.47457017]
[1726392167932,0.2522958,137.14,137.13,5.6217009]
[1726392172137,0.2522958,137.14,137.09,11.47457017]
[1726392172336,0.2522958,137.14,137.1,5.62349167]
[1726392172521,0.2522958,137.14,137.11,5.62349167]
[1726392172724,0.2522958,137.14,137.12,5.62349167]
[1726392172931,0.2522958,137.14,137.1,11.47457017]
[1726392173239,0.2522958,137.14,137.11,5.62402014]
[1726392173440,0.2522958,137.14,137.1,11.47457017]
[1726392173441,0.2522958,137.14,137.12,5.62402014]
[1726392173622,0.2522958,137.14,137.1,11.47457017]
[1726392173822,0.2522958,137.14,137.11,5.62389769]
[1726392174028,0.2522958,137.14,137.09,11.47457017]
[1726392174229,0.2522958,137.14,137.1,5.6249319]
[1726392174431,0.2522958,137.14,137.11,5.6249319]
[1726392174618,0.2522958,137.14,137.09,11.47457017]
[1726392175243,0.2522958,137.14,137.1,5.62520155]
[1726392175537,7.2928,137.12,137.09,11.47457017]
[1726392175746,7.2928,137.12,137.1,5.62682069]
[1726392175947,16.2751,137.13,137.04,16.235]
[1726392176128,16.2751,137.13,137.05,5.62642465]
[1726392176326,16.2751,137.13,137.07,11.47457017]
[1726392176516,16.2751,137.13,137.06,5.62642465]
[1726392176517,16.2751,137.13,137.08,17.10099482]
[1726392176846,16.2751,137.13,137.09,5.62642465]
[1726392177043,16.2751,137.13,137.1,5.62642465]
[1726392177261,16.2751,137.13,137.08,11.47457017]
[1726392177422,16.2751,137.13,137.09,5.62645297]
[1726392177754,16.2751,137.13,137.1,5.62645297]
[1726392177925,16.2751,137.13,137.08,11.47457017]
[1726392178126,16.2751,137.13,137.09,5.62645297]
[1726392178324,16.2751,137.13,137.1,5.62645297]
[1726392178628,16.2751,137.13,137.08,11.47457017]
[1726392178839,16.2751,137.13,137.09,5.62645297]
[1726392179148,16.2751,137.13,137.1,5.62645297]
[1726392179339,16.2751,137.13,137.08,11.47457017]
[1726392179524,16.2751,137.13,137.09,5.62601468]
[1726392179847,16.2751,137.13,137.1,5.62601468]
[1726392180033,16.2751,137.13,137.08,11.47457017]
[1726392180348,16.2751,137.13,137.09,5.62557641]
[1726392180528,16.2751,137.13,137.1,5.62557641]
[1726392180722,16.2751,137.13,137.08,11.47457017]
[1726392180924,16.2751,137.13,137.09,5.62532187]
[1726392181137,16.2751,137.13,137.1,5.62532187]
[1726392181338,16.2751,137.13,137.08,11.47457017]
[1726392181539,16.2751,137.13,137.09,5.62524471]
[1726392181750,16.2751,137.13,137.1,5.62524471]
[1726392181951,16.2751,137.13,137.08,11.47457017]
[1726392182161,16.2751,137.13,137.09,5.62518973]
[1726392182339,16.2751,137.13,137.1,5.62518973]
[1726392182547,16.2751,137.13,137.08,11.47457017]
[1726392182764,16.2751,137.13,137.09,5.625262]
[1726392182964,16.2751,137.13,137.08,11.47457017]
[1726392183151,16.2751,137.13,137.09,5.62500754]
[1726392183458,16.2751,137.13,137.08,11.47457017]
[1726392183850,16.2751,137.13,137.09,5.62562733]
[1726392184160,16.2751,137.13,137.08,11.47457017]
[1726392184559,23.5675,137.13,137.08,11.47457017]
[1726392185138,23.5675,137.13,137.05,44.027864]
[1726392185569,23.5675,137.13,137.07,11.47457017]
[1726392199799,23.5675,137.13,137.08,11.47457017]
[1726392199958,23.5675,137.13,137.09,11.47457017]
[1726392199959,16.2751,137.13,137.09,11.47457017]
[1726392200273,16.2751,137.13,137.11,11.47457017]
[1726392202043,16.2751,137.13,137.12,11.47457017]
[1726392205567,6.8191958,137.14,137.12,11.47457017]
[1726392205760,6.8191958,137.14,137.11,11.47457017]
[1726392213487,6.8191958,137.14,137.1,11.47457017]
[1726392214869,6.8191958,137.14,137.08,11.47457017]
[1726392219982,6.8191958,137.14,137.09,11.47457017]
[1726392223569,6.8191958,137.14,137.1,11.47457017]
[1726392223981,6.8191958,137.14,137.11,11.47457017]
[1726392226699,0.2522958,137.14,137.11,11.47457017]
[1726392227004,0.2522958,137.14,137.07,20.12549]
[1726392227211,0.2522958,137.14,137.09,0.25098]
[1726392227581,0.2522958,137.14,137.11,11.47457017]
[1726392231009,0.2522958,137.14,137.1,11.47457017]
[1726392234898,0.2522958,137.14,137.12,30.0]
[1726392235099,0.2522958,137.14,137.1,11.47457017]
[1726392236811,0.2522958,137.14,137.09,11.47457017]
[1726392236988,0.2522958,137.14,137.1,30.0]
[1726392238095,0.2522958,137.14,137.09,11.47457017]
[1726392240212,0.2522958,137.14,137.11,11.47457017]
[1726392240396,0.2522958,137.14,137.12,11.47457017]
[1726392240603,0.2522958,137.14,137.11,11.47457017]
[1726392242812,0.2522958,137.14,137.1,41.47457017]
[1726392244406,0.2522958,137.14,137.11,5.62488869]
[1726392244620,0.2522958,137.14,137.12,5.62488869]
[1726392244850,0.2522958,137.14,137.09,11.60006017]
[1726392245008,0.2522958,137.14,137.1,5.62519445]
[1726392245519,0.2522958,137.14,137.11,5.62531527]
[1726392245719,0.2522958,137.14,137.09,11.47457017]
[1726392245927,0.2522958,137.14,137.1,5.62496196]
[1726392246225,0.2522958,137.14,137.11,5.62496196]
[1726392246428,0.2522958,137.14,137.12,5.62496196]
[1726392246607,0.2522958,137.14,137.01,5.55811023]
[1726392246805,0.2522958,137.14,137.1,11.47457017]
[1726392247105,0.2522958,137.14,137.11,5.6246786]
[1726392247306,0.2522958,137.14,137.12,5.6246786]
[1726392247524,0.2522958,137.14,137.1,11.47457017]
[1726392247840,0.2522958,137.14,137.11,5.62462865]
[1726392248132,0.2522958,137.14,137.12,5.62462865]
[1726392248297,0.2522958,137.14,137.1,11.47457017]
[1726392248503,0.2522958,137.14,137.11,5.62463139]
[1726392248712,0.2522958,137.14,137.12,5.62463139]
[1726392248925,0.2522958,137.14,137.1,11.47457017]
[1726392249124,0.2522958,137.14,137.11,5.62446189]
[1726392249316,0.2522958,137.14,137.12,5.62446189]
[1726392249517,0.2522958,137.14,137.1,11.47457017]
[1726392249724,0.2522958,137.14,137.11,5.62486113]
[1726392249915,0.2522958,137.14,137.12,5.62486113]
[1726392250119,0.2522958,137.14,137.1,11.47457017]
[1726392250435,0.2522958,137.14,137.11,5.62490878]
[1726392250720,0.2522958,137.14,137.12,5.62490878]
[1726392250929,0.2522958,137.14,137.1,11.47457017]
[1726392251110,0.2522958,137.14,137.11,5.62463924]
[1726392251308,0.2522958,137.14,137.1,11.47457017]
[1726392251309,0.2522958,137.14,137.12,5.62463924]
[1726392251505,0.2522958,137.14,137.1,11.47457017]
[1726392251730,0.2522958,137.14,137.11,5.62457421]
[1726392251920,0.2522958,137.14,137.12,5.62457421]
[1726392252107,0.2522958,137.14,137.1,11.47457017]
[1726392252308,0.2522958,137.14,137.11,7.0828822]
[1726392252504,0.2522958,137.14,137.12,5.62431696]
[1726392252811,0.2522958,137.14,137.11,1.45856524]
[1726392253014,0.2522958,137.14,137.12,17.09886297]
[1726392253231,0.2522958,137.14,137.13,5.62376264]
[1726392255232,0.2522958,137.14,137.12,11.47457017]
[1726392255430,0.2522958,137.14,137.13,5.62310292]
[1726392262224,0.2522958,137.14,137.12,11.47457017]
[1726392262448,0.2522958,137.14,137.13,5.6232125]
[1726392262741,0.2522958,137.14,137.13,17.09778267]
[1726392265225,0.2522958,137.14,137.13,47.34876267]
[1726392265733,0.2522958,137.14,137.13,47.34840731]
[1726392266235,0.2522958,137.14,137.13,41.85104017]
[1726392266439,0.2522958,137.14,137.13,47.47278284]
[1726392271152,0.2522958,137.14,137.13,47.47230482]
[1726392272861,0.2522958,137.14,137.13,17.47230482]
[1726392275727,0.2522958,137.14,137.13,47.47230482]
[1726392276856,0.2522958,137.14,137.13,47.47227367]
[1726392281036,0.2522958,137.14,137.13,35.6212335]
[1726392281342,0.2522958,137.14,137.13,5.6212335]
[1726392283445,0.2522958,137.14,137.12,11.47457017]
[1726392283635,0.2522958,137.14,137.13,5.62138023]
[1726392284558,0.2522958,137.14,137.13,17.0959504]
[1726392287059,0.2522958,137.14,137.13,11.47457017]
[1726392287257,0.2522958,137.14,137.13,17.09583607]
[1726392288738,0.2522958,137.14,137.13,5.6212659]
[1726392290660,0.2522958,137.14,137.12,11.47457017]
[1726392290840,0.2522958,137.14,137.13,5.62194383]
[1726392294547,0.2522958,137.14,137.13,5.62173448]
[1726392297971,0.2522958,137.14,137.13,5.62008248]
[1726392300553,0.2522958,137.14,137.13,17.09465265]
[1726392300969,0.2522958,137.14,137.13,11.47457017]
[1726392301177,0.2522958,137.14,137.13,17.09533608]
[1726392304276,0.2522958,137.14,137.13,17.09455457]
[1726392307056,0.2522958,137.14,137.13,5.6199844]
[1726392307263,0.2522958,137.14,137.13,17.09455457]
[1726392307580,0.2522958,137.14,137.13,17.09335258]
[1726392307887,0.2522958,137.14,137.13,17.09300971]
[1726392313986,0.2522958,137.14,137.13,5.61843954]
[1726392317688,0.2522958,137.14,137.12,11.47457017]
[1726392317869,0.2522958,137.14,137.13,5.61870746]
[1726392318194,0.2522958,137.14,137.13,11.2375085]
[1726392318490,0.2522958,137.14,137.13,5.61880104]
[1726392319765,0.2522958,137.14,137.13,17.09337121]
[1726392323769,0.2522958,137.14,137.13,11.47457017]
[1726392324263,0.2522958,137.14,137.13,17.09252785]
[1726392326199,0.2522958,137.14,137.13,5.61795768]
[1726392326494,0.2522958,137.14,137.13,17.09252785]
[1726392328275,0.2522958,137.14,137.13,17.0933858]
[1726392328899,0.2522958,137.14,137.13,17.09340161]
[1726392331909,0.2522958,137.14,137.13,17.09359913]
[1726392335488,0.2522958,137.14,137.13,17.09319]
[1726392339012,0.2522958,137.14,137.13,17.09295426]
[1726392339402,0.2522958,137.14,137.13,11.47457017]
[1726392339905,0.2522958,137.14,137.13,17.09341332]
[1726392341205,0.2522958,137.14,137.13,5.61884315]
[1726392349819,0.2522958,137.14,137.12,11.47457017]
[1726392349995,0.2522958,137.14,137.13,5.61903314]
[1726392351119,0.2522958,137.14,137.13,17.09360331]
[1726392357217,0.2522958,137.14,137.13,17.09357188]
[1726392361223,0.2522958,137.14,137.13,17.09398663]
[1726392363024,0.2522958,137.14,137.13,11.47457017]
[1726392363229,0.2522958,137.14,137.13,17.08472847]
[1726392366529,0.2522958,137.14,137.13,11.47457017]
[1726392366729,0.2522958,137.14,137.13,17.08473413]
[1726392370726,0.2522958,137.14,137.13,17.08426085]
[1726392372023,0.2522958,137.14,137.13,5.60969068]
[1726392372221,0.2522958,137.14,137.09,3.6792964]
[1726392372442,0.2522958,137.14,137.1,5.61205228]
[1726392372619,0.2522958,137.14,137.11,5.61205228]
[1726392372810,0.2522958,137.14,137.12,5.61205228]
[1726392373029,0.2522958,137.14,137.1,11.47457017]
[1726392373328,0.2522958,137.14,137.11,5.61220231]
[1726392373540,0.2522958,137.14,137.1,11.47457017]
[1726392373718,0.2522958,137.14,137.12,5.61219888]
[1726392373915,0.2522958,137.14,137.1,11.47457017]
[1726392374111,0.2522958,137.14,137.11,5.61241613]
[1726392374321,0.2522958,137.14,137.12,5.61241613]
[1726392374530,0.2522958,137.14,137.1,11.47457017]
[1726392374733,0.2522958,137.14,137.11,5.61219227]
[1726392375037,0.2522958,137.14,137.12,5.61219227]
[1726392375338,0.2522958,137.14,137.1,11.47457017]
[1726392375633,0.2522958,137.14,137.11,5.61218661]
[1726392375818,0.2522958,137.14,137.12,5.61218661]
[1726392376021,0.2522958,137.14,137.1,11.47457017]
[1726392376221,0.2522958,137.14,137.11,5.61218935]
[1726392376422,0.2522958,137.14,137.1,11.47457017]
[1726392376621,0.2522958,137.14,137.11,5.61218935]
[1726392376822,0.2522958,137.14,137.12,5.61218935]
[1726392377023,0.2522958,137.14,137.1,11.47457017]
[1726392377223,0.2522958,137.14,137.11,5.61176105]
[1726392377421,0.2522958,137.14,137.12,5.61176105]
[1726392377635,0.2522958,137.14,137.1,11.47457017]
[1726392377822,0.2522958,137.14,137.11,5.61191136]
[1726392378021,0.2522958,137.14,137.12,5.61191136]
[1726392378337,0.2522958,137.14,137.1,11.47457017]
[1726392378539,0.2522958,137.14,137.11,5.61157786]
[1726392378740,0.2522958,137.14,137.1,11.47457017]
[1726392378741,0.2522958,137.14,137.12,5.61157786]
[1726392378940,0.2522958,137.14,137.1,11.47457017]
[1726392379237,0.2522958,137.14,137.11,5.61199656]
[1726392379538,0.2522958,137.14,137.1,11.47457017]
[1726392379742,0.2522958,137.14,137.11,5.61183583]
[1726392379955,0.2522958,137.14,137.1,11.47457017]
[1726392380418,0.2522958,137.14,137.11,5.61226243]
[1726392380617,0.2522958,137.14,137.1,11.47457017]
[1726392380818,0.2522958,137.14,137.11,5.61242872]
[1726392381033,0.2522958,137.14,137.1,11.47457017]
[1726392381225,0.2522958,137.14,137.11,5.6124036]
[1726392381443,0.2522958,137.14,137.1,11.47457017]
[1726392381733,0.2522958,137.14,137.11,5.61222443]
[1726392381942,0.2522958,137.14,137.1,11.47457017]
[1726392382146,0.2522958,137.14,137.11,5.61224955]
[1726392382439,0.2522958,137.14,137.1,11.47457017]
[1726392382645,0.2522958,137.14,137.11,5.61263517]
[1726392382941,0.2522958,137.14,137.1,11.47457017]
[1726392383142,0.2522958,137.14,137.11,5.61417277]
[1726392383330,0.2522958,137.14,137.1,11.47457017]
[1726392383528,0.2522958,137.14,137.11,5.61439163]
[1726392383715,0.2522958,137.14,137.1,11.47457017]
[1726392383916,0.2522958,137.14,137.11,5.61506432]
[1726392384118,0.2522958,137.14,137.1,11.47457017]
[1726392384535,0.2522958,137.14,137.11,5.61573564]
[1726392384742,0.2522958,137.14,137.1,11.47457017]
[1726392384922,0.2522958,137.14,137.11,5.61618976]
[1726392385123,0.2522958,137.14,137.1,11.47457017]
[1726392385441,0.2522958,137.14,137.11,5.61613506]
[1726392385643,0.2522958,137.14,137.08,3.6823639]
[1726392385942,7.5441958,137.14,137.09,17.09105612]
[1726392386143,7.5441958,137.14,137.1,5.61648595]
[1726392386439,7.2924,137.13,137.11,5.61648595]
[1726392386648,7.2924,137.13,137.05,3.6823639]
[1726392386823,7.2924,137.13,137.07,11.47457017]
[1726392387148,7.2924,137.13,137.08,5.61870676]
[1726392387465,7.2924,137.13,137.09,5.61870054]
[1726392387630,7.2924,137.13,137.07,11.47457017]
[1726392387826,7.2924,137.13,137.08,5.61936353]
[1726392388031,7.2924,137.13,137.07,11.47457017]
[1726392388032,7.2924,137.13,137.09,5.61936353]
[1726392388231,7.2924,137.13,137.07,11.47457017]
[1726392388444,7.2924,137.13,137.08,5.61960119]
[1726392388641,7.2924,137.13,137.09,5.61960119]
[1726392388946,7.2924,137.13,137.07,11.47457017]
[1726392389143,7.2924,137.13,137.08,5.61961422]
[1726392389347,7.2924,137.13,137.09,5.61961422]
[1726392389520,7.2924,137.13,137.07,11.47457017]
[1726392389723,7.2924,137.13,137.08,5.6195935]
[1726392389923,7.2924,137.13,137.09,5.6195935]
[1726392390143,7.2924,137.13,137.07,11.47457017]
[1726392390345,7.2924,137.13,137.08,5.61964818]
[1726392390544,7.2924,137.13,137.07,11.47457017]
[1726392390750,7.2924,137.13,137.08,5.61964202]
[1726392390951,7.2924,137.13,137.09,5.61964202]
[1726392391139,7.2924,137.13,137.07,11.47457017]
[1726392391452,7.2924,137.13,137.08,5.61983058]
[1726392391655,7.2924,137.13,137.09,5.61983058]
[1726392391956,7.2924,137.13,137.07,11.47457017]
[1726392392133,7.2924,137.13,137.08,5.6197258]
[1726392392334,7.2924,137.13,137.09,5.6197258]
[1726392392549,7.2924,137.13,137.07,11.47457017]
[1726392392732,7.2924,137.13,137.08,5.61972294]
[1726392393053,7.2924,137.13,137.09,5.61972294]
[1726392393240,7.2924,137.13,137.07,11.47457017]
[1726392393547,7.2924,137.13,137.08,5.61958981]
[1726392393753,7.2924,137.13,137.09,5.61958981]
[1726392393956,7.2924,137.13,137.07,11.47457017]
[1726392394136,7.2924,137.13,137.08,5.61960738]
[1726392394530,7.2924,137.13,137.09,5.61960738]
[1726392394836,7.2924,137.13,137.07,11.47457017]
[1726392395029,7.2924,137.13,137.08,5.61943455]
[1726392395229,7.2924,137.13,137.09,5.61943455]
[1726392395439,7.5441958,137.14,137.08,11.47457017]
[1726392395642,7.5441958,137.14,137.09,5.61942221]
[1726392395957,7.5441958,137.14,137.08,11.47457017]
[1726392396124,7.5441958,137.14,137.09,5.61909571]
[1726392396323,7.5441958,137.14,137.08,11.47457017]
[1726392396543,7.5441958,137.14,137.09,5.61918276]
[1726392396842,7.5441958,137.14,137.08,11.47457017]
[1726392397043,7.5441958,137.14,137.09,5.61912671]
[1726392397243,7.5441958,137.14,137.08,11.47457017]
[1726392399354,7.5441958,137.14,137.05,20.25098]
[1726392399552,7.2923,137.13,137.06,11.60006017]
[1726392400446,7.2923,137.13,137.07,11.47457017]
[1726392405543,22.2775,137.12,137.07,11.47457017]
[1726392405744,22.2775,137.12,137.06,11.60006017]
[1726392406491,22.2775,137.12,137.06,11.47457017]
[1726392409484,29.5704,137.12,137.06,11.47457017]
[1726392409658,29.5704,137.12,137.05,11.72555017]
[1726392410261,29.5704,137.12,137.06,11.47457017]
[1726392416085,29.5704,137.12,137.05,11.72555017]
[1726392416680,29.5704,137.12,137.05,11.60006017]
[1726392417584,7.2934,137.11,137.05,11.60006017]
[1726392417776,7.2934,137.11,137.05,11.47457017]
[1726392420460,7.294,137.1,137.01,44.027864]
[1726392420690,22.2775,137.12,137.04,11.47457017]
[1726392421264,22.2775,137.12,137.05,11.47457017]
[1726392422368,7.2934,137.11,137.05,11.47457017]
[1726392423964,29.5708,137.12,137.05,11.47457017]
[1726392425292,7.2934,137.11,137.05,11.47457017]
[1726392427300,7.2934,137.11,137.06,30.0]
[1726392429165,7.2934,137.11,137.05,11.47457017]
[1726392430394,7.2934,137.11,137.06,30.0]
[1726392431192,22.2775,137.12,137.06,30.0]
[1726392431376,29.5704,137.12,137.06,30.0]
[1726392434876,23.776884,137.11,137.06,30.0]
[1726392439804,31.070284,137.11,137.06,30.0]
[1726392440197,31.070284,137.11,137.05,11.47457017]
[1726392440901,31.070284,137.11,137.06,11.47457017]
[1726392442293,23.776884,137.11,137.07,30.0]
[1726392443305,23.776884,137.11,137.06,11.47457017]
[1726392443802,29.5705,137.12,137.06,11.47457017]
[1726392450312,33.40409268,137.12,137.06,11.47457017]
[1726392463110,29.5705,137.12,137.07,15.15986629]
[1726392463424,29.5705,137.12,137.07,11.47457017]
[1726392463425,33.40409268,137.12,137.07,11.47457017]
[1726392466309,29.5705,137.12,137.07,11.47457017]
[1726392467408,33.40409268,137.12,137.07,11.47457017]
[1726392468227,29.5705,137.12,137.07,11.47457017]
[1726392470049,33.40409268,137.12,137.06,11.47457017]
[1726392470234,33.40409268,137.12,137.05,11.47457017]
[1726392476126,33.40409268,137.12,137.06,11.47457017]
[1726392492656,33.40409268,137.12,137.05,11.47457017]
[1726392494156,3.83359268,137.11,137.05,11.47457017]
[1726392495239,33.40409268,137.12,137.05,11.47457017]
[1726392496452,26.11109268,137.12,137.05,11.47457017]
[1726392496658,7.2934,137.11,137.05,11.47457017]
[1726392499459,33.40399268,137.12,137.05,11.47457017]
[1726392513269,7.2935,137.11,137.05,11.47457017]
[1726392513565,15.8054,137.1,137.05,11.47457017]
[1726392514038,15.8054,137.1,137.04,11.72555017]
[1726392514240,6.1715,137.09,137.05,30.0]
[1726392514666,6.1715,137.09,137.0,0.2508597]
[1726392514860,10.00509268,137.09,137.0,0.2508597]
[1726392515079,10.00509268,137.09,137.02,11.47457017]
[1726392515378,10.00509268,137.09,137.03,11.47457017]
[1726392516368,17.29959268,137.09,137.03,11.47457017]
[1726392516878,15.8054,137.08,137.02,20.25098]
[1726392517078,15.8054,137.08,137.03,41.47457017]
[1726392517251,15.8054,137.08,137.03,11.47457017]
[1726392517452,15.8054,137.08,137.04,5.62272615]
[1726392517660,15.8054,137.08,137.05,5.62272615]
[1726392517854,15.8054,137.08,137.03,11.47457017]
[1726392518061,15.8054,137.08,137.04,5.6227234]
[1726392518369,15.8054,137.08,137.05,5.6227234]
[1726392518560,15.8054,137.08,137.03,11.47457017]
[1726392518760,15.8054,137.08,137.04,5.62272615]
[1726392518962,15.8054,137.08,137.05,5.62272615]
[1726392519164,15.8054,137.08,137.03,11.47457017]
[1726392519351,15.8054,137.08,137.04,5.62272615]
[1726392519550,15.8054,137.08,137.03,11.47457017]
[1726392519767,15.8054,137.08,137.04,5.62272615]
[1726392519966,15.8054,137.08,137.03,11.47457017]
[1726392520168,15.8054,137.08,137.04,5.62272478]
[1726392520368,15.8054,137.08,137.03,11.47457017]
[1726392520542,15.8054,137.08,137.04,5.62272615]
[1726392520747,15.8054,137.08,137.03,11.47457017]
[1726392520948,15.8054,137.08,137.04,5.62272615]
[1726392521146,15.8054,137.08,137.03,11.47457017]
[1726392521347,15.8054,137.08,137.04,5.62272478]
[1726392521569,15.8054,137.08,137.03,11.47457017]
[1726392522373,15.8054,137.08,137.04,5.62272615]
[1726392522549,15.8054,137.08,137.03,11.47457017]
[1726392522753,15.8054,137.08,137.04,5.6227193]
[1726392522950,15.8054,137.08,137.03,11.47457017]
[1726392523274,15.8054,137.08,137.04,5.62275742]
[1726392523478,15.8054,137.08,137.03,11.47457017]
[1726392523656,15.8054,137.08,137.04,5.62275742]
[1726392523853,15.8054,137.08,137.03,11.47457017]
[1726392524171,15.8054,137.08,137.04,5.62272478]
[1726392524385,15.8054,137.08,137.03,11.47457017]
[1726392524674,15.8054,137.08,137.04,5.62272615]
[1726392524851,15.8054,137.08,137.03,11.47457017]
[1726392525045,15.8054,137.08,137.04,5.62272478]
[1726392525349,15.8054,137.08,137.02,0.25098]
[1726392525645,15.8054,137.08,137.03,11.47457017]
[1726392525847,15.8054,137.08,137.04,5.62272478]
[1726392526045,15.8054,137.08,137.03,11.47457017]
[1726392526244,15.8054,137.08,137.04,5.62272615]
[1726392526468,15.8054,137.08,137.03,11.47457017]
[1726392526673,15.8054,137.08,137.04,5.62272615]
[1726392526852,15.8054,137.08,137.03,11.47457017]
[1726392527052,15.8054,137.08,137.04,5.62272615]
[1726392527251,15.8054,137.08,137.03,11.47457017]
[1726392527571,15.8054,137.08,137.04,5.62272615]
[1726392527775,15.8054,137.08,137.03,11.47457017]
[1726392527963,15.8054,137.08,137.04,5.62272615]
[1726392528286,15.8054,137.08,137.03,11.47457017]
[1726392528467,15.8054,137.08,137.04,5.62272615]
[1726392528664,15.8054,137.08,137.03,11.47457017]
[1726392532754,15.8054,137.08,137.04,11.47457017]
[1726392548172,15.8054,137.08,137.03,11.47457017]
[1726392549979,23.1004,137.08,137.03,11.47457017]
[1726392551099,23.1004,137.08,137.01,0.25098]
[1726392551287,23.1004,137.08,137.02,11.47457017]
[1726392554097,7.2955,137.07,137.02,11.47457017]
[1726392554300,7.2955,137.07,137.01,11.47457017]
[1726392554501,7.2955,137.07,137.02,20.0]
[1726392555005,23.1004,137.08,137.02,20.0]
[1726392555872,23.1004,137.08,137.03,11.47457017]
[1726392559902,23.1004,137.08,137.02,11.47457017]
[1726392563207,30.173684,137.07,137.02,11.47457017]
[1726392563381,37.469284,137.07,137.02,11.47457017]
[1726392563983,37.469284,137.07,137.0,0.2508597]
[1726392564193,37.469284,137.07,137.01,11.47457017]
[1726392565603,13.6924,137.07,137.01,11.47457017]
[1726392568703,17.52599268,137.07,137.01,11.47457017]
[1726392568883,17.52599268,137.07,137.0,11.72542987]
[1726392570720,13.6924,137.07,137.0,11.72542987]
[1726392574911,16.5398,137.06,137.0,11.72542987]
[1726392577517,16.5398,137.06,137.01,11.47457017]
[1726392585211,23.8359,137.06,137.01,11.47457017]
[1726392587099,23.8359,137.06,137.0,0.2508597]
[1726392589226,23.8359,137.06,137.01,5.62336033]
[1726392589921,23.8359,137.06,137.0,11.72542987]
[1726392592429,23.8359,137.06,137.01,11.47457017]
[1726392603314,23.8359,137.06,137.0,11.72542987]
[1726392604211,16.5398,137.06,137.01,11.47457017]
[1726392604419,16.5398,137.06,137.02,11.47457017]
[1726392606237,16.5398,137.06,137.01,11.47457017]
[1726392610524,16.5398,137.06,137.03,11.47457017]
[1726392612920,16.5398,137.06,137.04,11.47457017]
[1726392613823,18.9300629,137.09,137.04,11.47457017]
[1726392617728,15.1009,137.09,137.04,11.47457017]
[1726392618855,18.9300629,137.09,137.04,11.47457017]
[1726392619053,18.9300629,137.09,137.01,0.25098]
[1726392619254,26.2246629,137.09,137.03,11.47457017]
[1726392620235,22.3955,137.09,137.03,11.47457017]
[1726392621036,26.2246629,137.09,137.03,11.47457017]
[1726392622144,26.2246629,137.09,137.04,11.47457017]
[1726392623765,22.3955,137.09,137.04,11.47457017]
[1726392624761,26.2246629,137.09,137.04,11.47457017]
[1726392628962,22.3955,137.09,137.04,11.47457017]
[1726392629866,26.2246629,137.09,137.04,11.47457017]
[1726392635042,22.3955,137.09,137.04,11.47457017]
[1726392636766,26.2246629,137.09,137.04,11.47457017]
[1726392642377,22.3955,137.09,137.04,11.47457017]
[1726392643455,26.2246629,137.09,137.04,11.47457017]
[1726392645167,26.2246629,137.09,137.01,0.25098]
[1726392645479,7.295,137.08,137.03,11.47457017]
[1726392649874,7.295,137.08,137.04,5.62282944]
[1726392650077,7.295,137.08,137.05,5.62282944]
[1726392650261,7.295,137.08,137.03,11.47457017]
[1726392650581,7.295,137.08,137.04,5.62282944]
[1726392650761,7.295,137.08,137.03,11.47457017]
[1726392651083,7.295,137.08,137.04,5.62282944]
[1726392651287,7.295,137.08,137.05,5.62282944]
[1726392651457,7.295,137.08,137.03,11.47457017]
[1726392651659,7.295,137.08,137.04,5.62282944]
[1726392651957,7.295,137.08,137.05,5.62282944]
[1726392652157,7.295,137.08,137.03,11.47457017]
[1726392652359,7.295,137.08,137.04,5.62266496]
[1726392652567,7.295,137.08,137.05,5.62266496]
[1726392652858,7.295,137.08,137.06,5.62266496]
[1726392653059,7.295,137.08,137.03,11.47457017]
[1726392653287,7.295,137.08,137.04,5.62266496]
[1726392653588,7.295,137.08,137.05,5.62266496]
[1726392653764,7.295,137.08,137.06,5.62266496]
[1726392653964,22.3954,137.09,137.04,11.47457017]
[1726392654181,22.3954,137.09,137.05,5.62248685]
[1726392654360,22.3954,137.09,137.06,5.62248685]